bitfinex/quotes_SOLUSD_20250924
["timestamp","ask_amount","ask_price","bid_price","bid_amount"]
[1758727814939,0.14216157,215.63,215.61,3.31975232]
[1758727815140,0.14216157,215.63,215.61,4.00975232]
[1758727815389,4.7797759,215.63,215.61,4.00975232]
[1758727815564,0.14216157,215.63,215.61,3.31975232]
[1758727815864,0.14216157,215.63,215.62,3.31975232]
[1758727816066,4.77973519,215.63,215.6,3.31975232]
[1758727816571,4.77973519,215.63,215.6,4.00975232]
[1758727816861,0.14216157,215.63,215.6,4.00975232]
[1758727817064,0.14216157,215.63,215.61,4.00975232]
[1758727817472,0.14216157,215.63,215.62,3.31975232]
[1758727818054,0.14216157,215.63,215.61,0.69]
[1758727818250,0.14216157,215.63,215.62,3.31975232]
[1758727818450,0.14216157,215.63,215.61,3.31975232]
[1758727818451,4.7797452,215.63,215.61,3.31975232]
[1758727818676,4.7797452,215.63,215.6,3.31975232]
[1758727819860,4.7797452,215.63,215.59,0.69]
[1758727820060,4.7797452,215.63,215.51,11.59998309]
[1758727820061,0.14216157,215.6,215.55,4.00975232]
[1758727820258,0.14216157,215.58,215.54,3.31975232]
[1758727820557,0.14216157,215.56,215.51,4.00975232]
[1758727820757,37.00216157,215.56,215.51,0.69]
[1758727820960,40.32191389,215.56,215.51,4.00975232]
[1758727821273,0.14216157,215.52,215.46,0.72]
[1758727821448,40.32191389,215.52,215.46,4.03975232]
[1758727821646,3.31975232,215.51,215.46,0.72]
[1758727821872,4.01975232,215.51,215.46,0.72]
[1758727822068,0.14216157,215.49,215.46,0.72]
[1758727823849,0.14216157,215.49,215.47,0.72]
[1758727824074,0.14216157,215.5,215.47,0.72]
[1758727824272,0.14216157,215.5,215.48,0.72]
[1758727824978,0.14216157,215.5,215.49,0.72]
[1758727825888,0.14216157,215.5,215.47,8.6806001]
[1758727826075,0.14216157,215.5,215.48,0.72]
[1758727826273,0.14216157,215.51,215.48,0.72]
[1758727826591,36.16,215.53,215.49,4.03975232]
[1758727826757,36.16,215.53,215.49,0.72]
[1758727826958,0.14216157,215.52,215.49,0.72]
[1758727827159,0.14216157,215.52,215.47,3.31975232]
[1758727827160,0.84216157,215.52,215.47,3.31975232]
[1758727827375,0.14216157,215.52,215.48,0.72]
[1758727828379,5.4821987,215.52,215.47,3.31975232]
[1758727828585,8.10195102,215.52,215.46,3.31975232]
[1758727828879,0.14216157,215.5,215.45,4.03975232]
[1758727829183,0.84216157,215.5,215.45,4.03975232]
[1758727829500,0.14216157,215.5,215.46,4.03975232]
[1758727829798,0.14216157,215.5,215.46,0.72]
[1758727830368,0.14216157,215.5,215.46,4.03975232]
[1758727830566,0.14216157,215.5,215.47,0.72]
[1758727830768,0.14216157,215.51,215.47,0.72]
[1758727831192,0.14216157,215.51,215.48,0.72]
[1758727831380,36.30216157,215.51,215.48,0.72]
[1758727831781,0.7,215.5,215.44,0.2]
[1758727831978,29.31975232,215.48,215.44,0.2]
[1758727832269,0.14216157,215.46,215.44,0.2]
[1758727832488,0.14216157,215.46,215.44,0.92]
[1758727832989,4.78343495,215.46,215.44,0.2]
[1758727833209,4.16191389,215.45,215.44,0.2]
[1758727834302,3.46191389,215.45,215.44,0.2]
[1758727834593,8.10336202,215.45,215.44,0.2]
[1758727836470,8.80336202,215.45,215.44,0.2]
[1758727839177,5.4836097,215.45,215.44,0.2]
[1758727839487,70.28336202,215.45,215.44,0.2]
[1758727840769,70.98336202,215.45,215.44,0.2]
[1758727840970,70.28336202,215.45,215.44,0.2]
[1758727841167,62.18,215.45,215.44,0.2]
[1758727841383,36.18,215.45,215.44,0.2]
[1758727841790,4.64124751,215.46,215.44,0.2]
[1758727841987,36.32216157,215.45,215.44,0.92]
[1758727844783,36.18,215.45,215.44,0.92]
[1758727845118,0.7,215.51,215.44,8.88141589]
[1758727845281,36.18,215.5,215.45,4.03975232]
[1758727845577,0.14216157,215.49,215.46,0.72]
[1758727845777,0.14216157,215.49,215.47,0.72]
[1758727846908,0.14216157,215.49,215.48,0.72]
[1758727847108,0.14216157,215.49,215.46,0.72]
[1758727847308,0.14216157,215.49,215.47,0.72]
[1758727849105,4.78279285,215.49,215.47,0.72]
[1758727849695,0.14216157,215.49,215.47,0.72]
[1758727850102,4.78277896,215.49,215.44,0.2]
[1758727850431,0.14216157,215.47,215.44,0.92]
[1758727850593,36.16,215.46,215.44,0.2]
[1758727852519,0.14216157,215.45,215.44,0.2]
[1758727854029,4.7836097,215.45,215.44,0.2]
[1758727854519,0.14216157,215.45,215.44,0.2]
[1758727857195,4.7836097,215.45,215.44,0.2]
[1758727857607,7.56898968,215.45,215.44,0.2]
[1758727858723,43.72898968,215.45,215.44,0.2]
[1758727859918,41.6036097,215.45,215.44,0.2]
[1758727860312,66.9436097,215.45,215.44,0.2]
[1758727860816,40.9436097,215.45,215.44,0.2]
[1758727861117,36.16,215.45,215.44,0.92]
[1758727861319,62.16,215.45,215.44,0.92]
[1758727861513,62.16,215.45,215.44,0.2]
[1758727861705,62.30216157,215.45,215.44,0.92]
[1758727862420,62.30216157,215.45,215.44,0.2]
[1758727863419,66.9436097,215.45,215.44,0.2]
[1758727864124,40.9436097,215.45,215.44,0.2]
[1758727865021,36.30216157,215.45,215.44,0.2]
[1758727866609,43.76898968,215.45,215.44,0.2]
[1758727866814,64.3722602,215.45,215.44,0.2]
[1758727867938,0.14216157,215.41,215.4,0.2]
[1758727868129,46.19333077,215.41,215.4,0.2]
[1758727868327,41.55102076,215.41,215.4,0.2]
[1758727868512,46.19333077,215.41,215.4,0.2]
[1758727868718,46.89333077,215.41,215.4,0.2]
[1758727871837,60.48892478,215.41,215.4,0.2]
[1758727872023,64.37312208,215.41,215.4,0.2]
[1758727872417,60.48892478,215.41,215.4,0.2]
[1758727873727,46.19333077,215.41,215.4,0.2]
[1758727874847,46.89333077,215.41,215.4,0.2]
[1758727875230,46.19333077,215.41,215.4,0.2]
[1758727876144,46.89333077,215.41,215.4,0.2]
[1758727876539,60.48892478,215.41,215.4,0.2]
[1758727878129,59.78892478,215.41,215.4,0.2]
[1758727879040,60.48892478,215.41,215.4,0.2]
[1758727883336,58.3635448,215.41,215.4,0.2]
[1758727883640,60.48892478,215.41,215.4,0.2]
[1758727885959,57.6635448,215.41,215.4,0.2]
[1758727886327,60.45892478,215.41,215.4,0.2]
[1758727886556,46.19333077,215.41,215.4,0.86]
[1758727886854,72.19333077,215.41,215.4,0.86]
[1758727887029,72.86333077,215.41,215.4,0.2]
[1758727887230,60.45892478,215.41,215.4,0.2]
[1758727887846,62.88614928,215.41,215.4,0.2]
[1758727888359,48.62055527,215.41,215.4,0.2]
[1758727888749,46.19333077,215.41,215.4,0.2]
[1758727889333,59.78892478,215.41,215.4,0.2]
[1758727889634,62.88612591,215.41,215.4,0.2]
[1758727890351,62.21612591,215.41,215.4,0.2]
[1758727891234,62.88612591,215.41,215.4,0.2]
[1758727893351,62.88612591,215.41,215.37,0.2]
[1758727893532,41.86313556,215.38,215.37,0.2]
[1758727893727,81.14661477,215.38,215.37,0.2]
[1758727893928,81.81661477,215.38,215.37,0.2]
[1758727894852,83.94199475,215.38,215.37,0.2]
[1758727895056,0.14216157,215.37,215.36,1e-08]
[1758727895356,10.03419297,215.37,215.36,1e-08]
[1758727895544,10.70419297,215.37,215.36,1e-08]
[1758727896052,26.0,215.33,215.31,0.2]
[1758727896353,13.59559401,215.36,215.31,0.2]
[1758727896354,55.14661477,215.32,215.31,0.2]
[1758727896852,55.81661477,215.32,215.31,0.2]
[1758727897354,64.21143519,215.32,215.3,0.2]
[1758727897657,19.65661477,215.31,215.3,0.2]
[1758727897970,33.69881136,215.31,215.3,0.2]
[1758727898146,33.02881136,215.31,215.3,0.2]
[1758727899541,37.67327747,215.31,215.3,0.2]
[1758727899836,36.16,215.31,215.3,0.86]
[1758727900239,36.30216157,215.31,215.3,0.86]
[1758727900473,4.64359115,215.36,215.3,5.50468183]
[1758727900638,38.28537998,215.35,215.31,0.66]
[1758727900834,0.14216157,215.34,215.31,0.66]
[1758727901133,36.16,215.34,215.31,0.66]
[1758727901556,0.14216157,215.33,215.31,5.3043781]
[1758727901757,0.14216157,215.33,215.32,0.66]
[1758727902159,36.16,215.34,215.32,2.78537998]
[1758727902360,2.12537998,215.41,215.33,2.12537998]
[1758727902549,36.16,215.4,215.34,2.78537998]
[1758727902861,3.25948449,215.39,215.35,0.66]
[1758727903053,0.14216157,215.37,215.35,0.66]
[1758727903658,36.16,215.38,215.35,0.66]
[1758727903861,0.14216157,215.37,215.35,0.66]
[1758727904046,0.14216157,215.37,215.36,0.66]
[1758727904255,36.30216157,215.37,215.36,0.66]
[1758727906459,36.30216157,215.37,215.32,0.66]
[1758727906460,41.5469331,215.37,215.32,0.66]
[1758727906641,2.12537998,215.36,215.33,0.66]
[1758727906959,0.14216157,215.34,215.3,0.2]
[1758727907138,36.16,215.33,215.3,2.32537998]
[1758727907339,0.14216157,215.32,215.3,0.2]
[1758727907842,0.14216157,215.32,215.31,0.66]
[1758727909872,36.16,215.33,215.31,8.63060849]
[1758727910076,26.0,215.37,215.32,3.9861581]
[1758727910077,36.16,215.35,215.32,3.9861581]
[1758727910269,26.0,215.37,215.34,3.3261581]
[1758727910473,62.16,215.37,215.35,0.66]
[1758727910987,0.14216157,215.36,215.33,3.3261581]
[1758727911376,0.14216157,215.36,215.34,0.66]
[1758727911679,62.16,215.37,215.34,0.66]
[1758727911891,0.14216157,215.36,215.34,0.66]
[1758727912278,0.14216157,215.36,215.35,0.66]
[1758727912479,3.26788798,215.36,215.35,0.66]
[1758727912790,3.26788798,215.36,215.33,0.66]
[1758727913089,36.16,215.35,215.33,3.3261581]
[1758727913597,36.30216157,215.35,215.34,0.66]
[1758727913895,0.14216157,215.38,215.34,8.62997717]
[1758727914067,3.26811184,215.38,215.36,3.3261581]
[1758727914255,7.76805855,215.42,215.37,0.66]
[1758727914451,36.16,215.41,215.37,0.66]
[1758727914684,0.14216157,215.39,215.37,0.66]
[1758727915388,36.30216157,215.39,215.34,0.66]
[1758727915589,0.14216157,215.37,215.35,0.66]
[1758727915790,0.14216157,215.37,215.36,0.66]
[1758727917968,0.14216157,215.37,215.36,5.30338781]
[1758727918170,0.14216157,215.37,215.36,0.66]
[1758727918688,3.12595027,215.38,215.36,3.9861581]
[1758727918873,36.16,215.42,215.37,3.3261581]
[1758727919077,3.89842061,215.47,215.41,3.3261581]
[1758727919294,36.16,215.46,215.42,0.66]
[1758727919590,0.14216157,215.44,215.43,0.66]
[1758727919804,0.14216157,215.44,215.35,16.25257913]
[1758727919805,0.14216157,215.44,215.41,0.65]
[1758727919968,0.14216157,215.44,215.42,0.65]
[1758727920157,3.12450545,215.45,215.43,0.65]
[1758727920358,36.16,215.45,215.44,0.65]
[1758727920585,39.42666702,215.45,215.44,0.65]
[1758727921160,3.12450545,215.45,215.44,3.9761581]
[1758727921495,39.4861581,215.46,215.42,0.65]
[1758727921854,0.14216157,215.45,215.43,0.65]
[1758727922169,36.16,215.46,215.44,0.65]
[1758727922368,4.13831967,215.45,215.37,0.65]
[1758727922562,0.14216157,215.42,215.37,3.9761581]
[1758727922879,0.14216157,215.42,215.38,3.9761581]
[1758727923267,0.14216157,215.42,215.39,0.65]
[1758727923683,0.14216157,215.42,215.37,3.9761581]
[1758727923985,0.14216157,215.42,215.38,0.65]
[1758727924186,3.46831967,215.42,215.38,0.65]
[1758727924695,0.14216157,215.42,215.39,3.9761581]
[1758727924857,0.14216157,215.42,215.4,0.65]
[1758727925058,0.14216157,215.42,215.41,0.65]
[1758727925501,0.14216157,215.42,215.36,16.25165966]
[1758727925658,0.14216157,215.42,215.39,0.65]
[1758727926688,4.78434216,215.42,215.39,0.65]
[1758727926979,4.78434216,215.42,215.38,3.3261581]
[1758727927183,3.46831967,215.4,215.3,11.81127459]
[1758727927358,0.14216157,215.38,215.33,3.9761581]
[1758727927560,4.13831967,215.38,215.33,0.65]
[1758727927762,0.14216157,215.38,215.35,3.3261581]
[1758727927965,0.14216157,215.38,215.36,0.65]
[1758727928171,36.14,215.39,215.37,0.65]
[1758727929062,36.14,215.39,215.38,0.65]
[1758727929269,62.16,215.43,215.38,3.9761581]
[1758727929487,0.14216157,215.41,215.39,3.9761581]
[1758727929784,0.14216157,215.41,215.4,0.65]
[1758727929967,0.81216157,215.41,215.34,4.64372582]
[1758727930168,4.78447158,215.41,215.34,5.29372582]
[1758727930386,8.78062968,215.41,215.35,3.3261581]
[1758727930958,3.9961581,215.4,215.33,3.3261581]
[1758727931178,0.14216157,215.38,215.32,0.65]
[1758727931486,0.14216157,215.38,215.34,3.3261581]
[1758727931888,4.78525395,215.38,215.34,3.9761581]
[1758727932794,0.14216157,215.38,215.35,3.9761581]
[1758727933390,0.14216157,215.38,215.36,0.65]
[1758727934876,36.18,215.39,215.37,0.65]
[1758727935095,36.18,215.39,215.38,0.65]
[1758727935096,36.32216157,215.39,215.38,0.65]
[1758727935397,0.14216157,215.41,215.38,3.9761581]
[1758727935583,3.26041502,215.41,215.39,0.65]
[1758727936494,3.93041502,215.41,215.34,0.65]
[1758727936788,0.81216157,215.41,215.36,3.3261581]
[1758727936997,0.14216157,215.39,215.35,3.3261581]
[1758727937398,0.14216157,215.39,215.36,3.9761581]
[1758727937775,0.14216157,215.41,215.38,3.3261581]
[1758727937985,170.06,215.42,215.39,8.61889012]
[1758727938195,170.06,215.42,215.4,0.65]
[1758727938391,170.06,215.42,215.41,0.65]
[1758727938998,133.9,215.42,215.41,3.9761581]
[1758727939380,133.9,215.42,215.4,3.3261581]
[1758727939792,133.9,215.42,215.4,3.9761581]
[1758727939991,133.9,215.42,215.4,0.65]
[1758727940187,133.9,215.42,215.4,3.9761581]
[1758727940705,133.9,215.42,215.41,0.69]
[1758727941078,133.9,215.42,215.4,3.3261581]
[1758727941295,133.9,215.42,215.38,3.3261581]
[1758727941481,133.9,215.42,215.39,0.69]
[1758727941689,133.9,215.42,215.39,4.0161581]
[1758727942007,170.04,215.42,215.39,4.0161581]
[1758727942700,170.04,215.42,215.39,8.65887216]
[1758727943700,0.80216157,215.41,215.3,26.2]
[1758727943897,0.14216157,215.39,215.33,3.3261581]
[1758727944095,0.14216157,215.37,215.33,3.3261581]
[1758727944301,0.14216157,215.37,215.34,8.65997717]
[1758727944501,36.14,215.38,215.35,3.3261581]
[1758727944710,0.14216157,215.38,215.36,4.0161581]
[1758727944986,0.14216157,215.38,215.37,0.69]
[1758727946285,0.14216157,215.38,215.36,7.96951955]
[1758727946591,0.14216157,215.38,215.36,8.65951955]
[1758727947026,36.14,215.39,215.37,4.0161581]
[1758727947199,26.0,215.45,215.38,0.69]
[1758727947395,36.14,215.43,215.39,3.3261581]
[1758727947618,3.12535046,215.42,215.39,0.69]
[1758727948211,3.12535046,215.42,215.39,5.33273835]
[1758727948413,3.12535046,215.42,215.39,0.69]
[1758727949704,3.12535046,215.42,215.39,5.33272279]
[1758727950306,3.12535046,215.42,215.39,0.69]
[1758727950814,3.12535046,215.42,215.31,13.59559401]
[1758727950815,0.14216157,215.39,215.33,4.0161581]
[1758727951023,36.28216157,215.39,215.34,0.69]
[1758727951221,13.59559401,215.35,215.3,0.2]
[1758727951405,3.46831967,215.31,215.3,0.2]
[1758727951729,39.80831967,215.31,215.3,0.2]
[1758727951925,43.59422122,215.31,215.3,0.2]
[1758727952229,48.23868733,215.31,215.3,0.2]
[1758727952716,52.73848089,215.31,215.3,0.2]
[1758727953613,44.91252923,215.31,215.3,0.2]
[1758727953939,0.14216157,215.3,215.27,0.69]
[1758727954238,3.26806312,215.3,215.27,0.69]
[1758727954441,3.26806312,215.3,215.27,5.33531511]
[1758727955516,16.39869661,215.3,215.24,0.2]
[1758727956230,8.57274495,215.3,215.24,4.84596613]
[1758727956434,16.39869661,215.3,215.24,4.84596613]
[1758727956635,16.39869661,215.3,215.24,0.2]
[1758727956940,16.39869661,215.3,215.24,4.84595731]
[1758727957140,16.39869661,215.3,215.24,0.2]
[1758727958322,15.73869661,215.3,215.24,0.2]
[1758727958522,11.09401478,215.3,215.26,5.33550398]
[1758727958935,11.09401478,215.3,215.26,0.69]
[1758727959656,3.26806312,215.3,215.26,0.69]
[1758727959834,3.26806312,215.3,215.24,0.2]
[1758727959835,15.73869661,215.3,215.24,0.2]
[1758727960037,16.39869661,215.3,215.24,0.89]
[1758727960237,16.39869661,215.3,215.24,0.2]
[1758727961228,8.57274495,215.3,215.24,0.2]
[1758727961434,3.26806312,215.3,215.26,0.69]
[1758727961647,44.26811323,215.3,215.26,0.69]
[1758727961850,52.03869661,215.3,215.24,0.2]
[1758727962053,52.69869661,215.3,215.24,0.2]
[1758727962934,66.29429062,215.3,215.24,0.2]
[1758727965352,29.3896589,215.25,215.24,0.2]
[1758727965660,68.83556045,215.25,215.24,0.2]
[1758727965964,69.49556045,215.25,215.24,0.2]
[1758727967237,39.59559401,215.23,215.2,0.2]
[1758727967462,21.56370724,215.21,215.2,1e-08]
[1758727967765,24.68960879,215.21,215.2,1e-08]
[1758727967960,27.21349826,215.21,215.2,1e-08]
[1758727968332,27.21349826,215.21,215.1,0.89]
[1758727968333,39.59559401,215.19,215.1,0.89]
[1758727968534,87.02960879,215.19,215.1,0.89]
[1758727968767,13.73775558,215.18,215.1,0.2]
[1758727968937,24.68960879,215.18,215.1,0.2]
[1758727969139,29.99688084,215.18,215.1,0.2]
[1758727969847,29.99688084,215.18,215.11,0.69]
[1758727970256,29.99688084,215.18,215.1,0.2]
[1758727970451,29.99688084,215.18,215.1,0.89]
[1758727970758,0.14216157,215.14,215.1,0.89]
[1758727971067,41.57274052,215.13,215.1,0.2]
[1758727971247,41.57274052,215.13,215.1,4.84900046]
[1758727971456,16.12948348,215.21,215.12,5.25274052]
[1758727971457,1.86388947,215.21,215.12,5.25274052]
[1758727971665,36.38,215.2,215.15,5.25274052]
[1758727971966,36.38,215.2,215.16,0.71]
[1758727972461,5.25274052,215.24,215.18,5.25274052]
[1758727972766,41.63274052,215.23,215.19,0.71]
[1758727972963,4.64468183,215.3,215.19,0.71]
[1758727972964,5.25274052,215.22,215.19,0.71]
[1758727973155,5.25274052,215.23,215.2,4.64684014]
[1758727973357,5.25274052,215.23,215.21,0.71]
[1758727973564,41.65274052,215.24,215.21,0.71]
[1758727973869,5.25274052,215.23,215.22,0.71]
[1758727974070,5.25274052,215.23,215.2,4.64684014]
[1758727974290,41.65274052,215.24,215.2,4.64684014]
[1758727974644,41.65274052,215.24,215.21,0.71]
[1758727975846,41.65274052,215.24,215.19,4.64705608]
[1758727976043,41.65274052,215.24,215.21,0.71]
[1758727976244,41.65274052,215.24,215.22,0.71]
[1758727976457,41.65274052,215.24,215.19,4.64705608]
[1758727976658,41.65274052,215.24,215.23,0.71]
[1758727976969,41.65274052,215.24,215.18,5.35726318]
[1758727976970,0.14216157,215.23,215.18,5.35726318]
[1758727977148,36.36,215.22,215.19,0.71]
[1758727977352,5.25274052,215.21,215.2,0.71]
[1758727977865,5.25274052,215.21,215.16,0.71]
[1758727978074,5.25274052,215.18,215.17,0.71]
[1758727978278,5.25274052,215.19,215.18,0.71]
[1758727979270,36.38,215.2,215.18,0.71]
[1758727980066,5.39490209,215.23,215.19,4.64705608]
[1758727980280,36.4,215.22,215.2,0.66]
[1758727980483,0.67,215.28,215.2,0.66]
[1758727980484,0.14216157,215.29,215.2,5.91274052]
[1758727980659,5.25274052,215.26,215.21,0.66]
[1758727980973,36.4,215.25,215.21,0.66]
[1758727981748,5.25274052,215.27,215.21,5.91274052]
[1758727981965,41.65274052,215.27,215.22,0.66]
[1758727982276,41.65274052,215.27,215.23,4.64619244]
[1758727982571,41.65274052,215.27,215.24,0.66]
[1758727982887,0.14216157,215.24,215.19,0.66]
[1758727983066,0.14216157,215.24,215.17,4.64748803]
[1758727983067,5.25274052,215.2,215.17,5.30748803]
[1758727983258,5.25274052,215.2,215.18,0.66]
[1758727983459,5.25274052,215.21,215.18,0.66]
[1758727983976,5.25274052,215.19,215.16,4.64768066]
[1758727984180,5.25274052,215.18,215.16,5.30768066]
[1758727985172,5.25274052,215.17,215.13,4.64815374]
[1758727985373,5.25274052,215.17,215.13,5.30815374]
[1758727985561,5.25274052,215.17,215.14,0.66]
[1758727985765,5.25274052,215.17,215.15,0.66]
[1758727986270,5.25274052,215.17,215.14,4.64804987]
[1758727986482,5.25274052,215.17,215.15,0.66]
[1758727986987,5.25274052,215.18,215.15,0.66]
[1758727987568,5.25274052,215.18,215.14,4.64804987]
[1758727987781,5.25274052,215.17,215.14,4.64804987]
[1758727988375,5.25274052,215.17,215.13,4.64835215]
[1758727988885,41.63274052,215.17,215.13,5.30835215]
[1758727989469,41.63274052,215.17,215.13,4.64835215]
[1758727989672,41.63274052,215.17,215.14,0.66]
[1758727990097,5.25274052,215.16,215.1,4.84891025]
[1758727990273,5.25274052,215.16,215.12,5.30853449]
[1758727990619,36.38,215.17,215.13,0.66]
[1758727990791,5.25274052,215.16,215.13,0.66]
[1758727991504,5.25274052,215.16,215.1,0.2]
[1758727991674,5.25274052,215.14,215.1,4.8489961]
[1758727991885,5.25274052,215.14,215.1,5.5089961]
[1758727992694,5.25274052,215.14,215.1,0.86]
[1758727993104,3.10929473,215.16,215.1,0.2]
[1758727993105,5.25274052,215.12,215.1,0.2]
[1758727993793,5.25274052,215.11,215.1,0.2]
[1758727993995,5.25274052,215.12,215.1,0.2]
[1758727994303,0.14216157,215.12,215.1,0.2]
[1758727994503,41.61274052,215.13,215.11,0.66]
[1758727994504,36.36,215.13,215.11,0.66]
[1758727994701,36.50216157,215.13,215.12,0.66]
[1758727995008,36.50216157,215.13,215.1,4.84898593]
[1758727995200,26.0,215.15,215.11,0.66]
[1758727995418,5.25274052,215.12,215.1,0.2]
[1758727995706,3.25768126,215.13,215.1,0.86]
[1758727995908,3.25768126,215.13,215.1,5.50889481]
[1758727996086,3.25768126,215.13,215.1,4.84889481]
[1758727996282,3.25768126,215.13,215.1,5.50889481]
[1758727996487,3.25768126,215.13,215.11,0.66]
[1758727997010,3.25768126,215.13,215.1,4.84889481]
[1758727997401,8.51042178,215.13,215.1,0.2]
[1758727997611,0.14216157,215.11,215.1,0.2]
[1758727998294,3.11551969,215.13,215.1,5.50900046]
[1758727998513,8.36826021,215.13,215.1,5.50900046]
[1758727998804,44.72826021,215.13,215.1,5.50900046]
[1758727999011,3.11551969,215.12,215.1,0.2]
[1758727999608,3.11551969,215.12,215.1,4.84897129]
[1758728000213,3.11551969,215.12,215.1,0.2]
[1758728000414,3.11551969,215.12,215.1,4.84900044]
[1758728000616,5.39490209,215.11,215.1,0.2]
[1758728000905,10.70368643,215.11,215.1,0.2]
[1758728001515,13.81920612,215.11,215.09,0.2]
[1758728001714,42.41490209,215.1,215.09,0.2]
[1758728002015,45.53042178,215.1,215.09,0.2]
[1758728002310,44.87042178,215.1,215.09,0.2]
[1758728002696,0.66,215.15,215.09,0.88]
[1758728002905,0.14216157,215.12,215.09,0.88]
[1758728003088,36.34,215.11,215.09,5.5292166]
[1758728003923,36.48216157,215.13,215.1,0.68]
[1758728004126,36.48216157,215.13,215.09,4.8492166]
[1758728004127,3.11851149,215.12,215.09,4.8492166]
[1758728004508,3.11851149,215.12,215.09,5.52914872]
[1758728005126,3.11851149,215.12,215.09,0.88]
[1758728006305,5.25085687,215.11,215.09,0.2]
[1758728006506,44.83152993,215.1,215.09,0.2]
[1758728006806,4.79137817,215.09,215.08,0.2]
[1758728007001,13.82074653,215.09,215.08,0.2]
[1758728007317,9.17152993,215.09,215.08,0.2]
[1758728007614,8.51152993,215.09,215.08,0.2]
[1758728007917,36.34,215.09,215.08,0.2]
[1758728008119,39.45851149,215.09,215.08,0.2]
[1758728008419,44.70936836,215.09,215.08,0.2]
[1758728008816,39.45851149,215.09,215.08,0.2]
[1758728009010,3.11851149,215.09,215.08,0.2]
[1758728009314,5.25085687,215.1,215.08,5.52940301]
[1758728009315,36.34,215.1,215.08,5.52940301]
[1758728009619,3.26067306,215.12,215.08,5.52940301]
[1758728009620,3.11851149,215.09,215.08,4.84940301]
[1758728009822,36.34,215.11,215.08,4.84940301]
[1758728010001,3.11851149,215.1,215.08,5.52940301]
[1758728010315,3.11851149,215.1,215.09,0.68]
[1758728010497,3.11851149,215.1,215.08,5.52940301]
[1758728011006,3.11851149,215.1,215.08,0.2]
[1758728011325,3.11851149,215.1,215.08,0.88]
[1758728011496,3.11851149,215.1,215.08,5.52938062]
[1758728012120,3.11851149,215.1,215.09,0.68]
[1758728012301,36.34,215.11,215.09,0.68]
[1758728012621,5.25085687,215.12,215.09,0.68]
[1758728012821,8.37038943,215.12,215.09,0.68]
[1758728012994,8.37038943,215.12,215.09,5.32901533]
[1758728013699,0.14216157,215.16,215.1,0.68]
[1758728013912,41.59085687,215.15,215.1,0.68]
[1758728014220,5.25085687,215.16,215.11,0.68]
[1758728014396,8.37017295,215.16,215.12,0.68]
[1758728014606,8.37017295,215.16,215.13,0.68]
[1758728015203,5.25085687,215.18,215.14,0.68]
[1758728015396,5.25085687,215.18,215.11,16.27074519]
[1758728015397,3.11921822,215.19,215.15,0.68]
[1758728015614,3.11921822,215.19,215.14,5.25085687]
[1758728015816,3.89412789,215.25,215.16,5.93085687]
[1758728016126,3.89412789,215.25,215.11,42.27074519]
[1758728016127,41.59085687,215.24,215.17,5.93085687]
[1758728016322,41.59085687,215.24,215.18,0.68]
[1758728016323,5.25085687,215.23,215.18,0.68]
[1758728016523,0.66,215.23,215.18,0.68]
[1758728016714,5.25085687,215.22,215.15,5.25085687]
[1758728016915,5.25085687,215.22,215.19,0.68]
[1758728017315,5.25085687,215.22,215.17,0.68]
[1758728017625,5.25085687,215.22,215.16,9.89850984]
[1758728017626,3.11789982,215.23,215.18,0.68]
[1758728017801,41.59085687,215.24,215.19,0.68]
[1758728018001,41.59085687,215.24,215.2,0.68]
[1758728018314,0.66,215.3,215.21,0.68]
[1758728018512,5.25085687,215.27,215.21,5.93085687]
[1758728018713,8.36865896,215.27,215.22,0.68]
[1758728019020,5.25085687,215.27,215.23,0.68]
[1758728019328,5.25085687,215.27,215.24,4.64597658]
[1758728019832,5.25085687,215.25,215.2,4.64666154]
[1758728020025,5.25085687,215.25,215.21,0.68]
[1758728021108,5.25085687,215.22,215.18,0.68]